[Event "German Bundesliga 2023-24"]
[Site "Germany"]
[Date "2024.02.23"]
[Round "9.28"]
[White "Mamedyarov, Shakhriyar"]
[Black "Zilka, Stepan"]
[Result "1-0"]
[ECO "E25"]
[WhiteElo "2734"]
[BlackElo "2599"]
[Annotator "TA"]
[PlyCount "77"]
[EventDate "2023.10.20"]
[EventType "team-tourn"]
[EventCountry "GER"]
[SourceTitle "playchess.com"]
[Source "ChessBase"]
[SourceQuality "1"]
[TimeControl "40/6000+30:3000+30"]

{[%evp 14,77,2,5,45,51,41,54,50,21,19,11,12,0,0,0,58,36,33,31,75,67,61,57,62,49,51,45,60,50,66,56,93,89,91,31,29,15,21,34,83,94,97,104,303,305,316,323,322,325,331,321,293,303,310,315,308,320,558,563,556,550,526,490,900,854]} 1. d4 {[%emt 0:00:03]} Nf6 {[%emt 0:00:12]} 2. c4 {[%emt 0:00:05]} e6 {[%emt 0:00:10]} 3. Nc3 {[%emt 0:00:05]} Bb4 {[%emt 0:00:07]} 4. f3 {[%emt 0:00:08]} d5 {[%emt 0:00:28]} 5. a3 {[%emt 0:00:13]} Bxc3+ {[%emt 0:00:32]} 6. bxc3 {[%emt 0:00:06]} c5 {[%emt 0:00:14]} 7. cxd5 {[%emt 0:00:08]} Nxd5 {[%emt 0:02:22]} 8. dxc5 {[%emt 0:00:07] next e4 is good for White.} Nd7 {[%emt 0:17:29][%cal Of7f5]} 9. e4 {[%emt 0:07:45]} Ne7 {[%emt 0:04:30][%cal Od8a5]} 10. Be3 {[%emt 0:00:12]} O-O {[%emt 0:03:01] White is slightly better.} 11. Nh3 {[%emt 0:12:56]} Qa5 {[%emt 0:06:22][%csl LRc3,LRc5]} 12. Qb3 {[%emt 0:18:58]} (12. Rb1 {is interesting.} Nxc5 13. Qd6 Qxc3+ 14. Kf2) 12... Qc7 $1 {[%emt 0:02:07]} 13. a4 {[%emt 0:03:50]} Nxc5 {[%emt 0:12:34]} 14. Qa3 {[%emt 0:00:20]} Nd7 {[%emt 0:07:45]} (14... b6 $11) 15. a5 $14 {[%emt 0:07:12][%cal Of1e2]} (15. Qxe7 $2 Qxc3+ 16. Kf2 Qxa1 $19) 15... Nc6 {[%emt 0:05:29]} 16. Bb5 {[%emt 0:02:27]} Nce5 {[%emt 0:09:23]} 17. O-O {[%emt 0:01:47]} Nc4 {[%emt 0:04:40]} 18. Bxc4 {[%emt 0:00:32]} Qxc4 {[%emt 0:00:02] Black is weak on the dark squares} 19. Rfd1 {[%emt 0:01:44]} e5 {[%emt 0:06:16]} 20. Nf2 {[%emt 0:02:05][%cal Bh3f2,Bf2d3,Bd3c5][%mdl 32]} Nb8 {[%emt 0:03:52]} 21. Nd3 {[%emt 0:11:41]} Nc6 {[%emt 0:00:14]} 22. Nc5 {[%emt 0:00:08]} Rb8 {[%emt 0:01:59]} 23. Rd6 $40 {[%emt 0:02:24][%mdl 128] aiming for Qb2. White attacks with force.} Rd8 {[%emt 0:02:04] [#]} 24. Rad1 {[%emt 0:06:06]} (24. Rxd8+ $1 $16 Nxd8 25. Qb4) 24... Rxd6 {[%emt 0:00:07]} 25. Rxd6 {[%emt 0:00:03]} h6 {[%emt 0:00:48]} 26. h4 {[%emt 0:08:31]} Kh7 {[%emt 0:01:29] [#]} (26... Qb5 $14 {deserves consideration.}) 27. Bf2 $1 $16 {[%emt 0:02:35] White is more active.} f6 {[%emt 0:03:08]} 28. a6 $1 {[%emt 0:07:24]} Qb5 $2 {[%emt 0:03:13] This move loses the game for Black.} (28... h5 $16) 29. axb7 $18 {[%emt 0:02:18]} Bxb7 {[%emt 0:00:06]} 30. Qa2 {[%emt 0:00:26]} Bc8 {[%emt 0:02:37]} 31. Kh2 {[%emt 0:01:35]} Ne7 {[%emt 0:03:50][%cal Bc6e7,Be7g6,Bg6f4][%mdl 32] [#]} 32. Rxf6 $3 {[%emt 0:02:47][%cal Bd6f6,Bf6f7,Bf7f8][%mdl 544]} Qb2 {[%emt 0:01:10]} 33. Qxb2 {[%emt 0:00:27]} (33. Qxa7 $2 Qxf2 $19) 33... Rxb2 {[%emt 0:00:05]} 34. Rf7 {[%emt 0:00:03]} Ng6 {[%emt 0:03:44]} 35. Bg3 {[%emt 0:00:41]} a5 $2 {[%emt 0:00:11]} (35... h5 36. Rc7 (36. Rxa7 Rd2 $18) 36... Rb8 37. Rxa7 Rb6) 36. h5 {[%emt 0:00:48] White is clearly winning.} Nf4 {[%emt 0:00:05]} 37. Bxf4 {[%emt 0:00:04]} exf4 {[%emt 0:00:05]} 38. Rf8 {[%emt 0:00:25] Repels Rb5} (38. Rxf4 Rb5 39. Nd3 Rxh5+ 40. Kg3 Ba6 $14) 38... Rb8 {[%emt 0:00:20]} (38... Bb7 $142 39. c4 (39. Rxf4 Bc6 $18) (39. Rb8 Rb5 $18) 39... Rb1) 39. e5 {[%emt 0:00:12] Weighted Error Value: White=0.04 (flawless) /Black=0.27 (precise) .  Loses game:     	---       	Black=1      Mistake:       	White=1     	Black=4      Inaccurate:     	White=1     	Black=2      OK:         	White=21    	Black=14     Best:        	White=1     	Black=1      Strong:       	White=2     	Black=1} ({And not} 39. Rxf4 Rb5 40. Nd3 Rxh5+ 41. Kg1 Ba6 $11) 1-0

[Event "German Bundesliga 2023-24"]
[Site "Germany"]
[Date "2024.02.23"]
[Round "9.29"]
[White "Dautov, Rustem"]
[Black "Maghsoodloo, Parham"]
[Result "1-0"]
[ECO "E60"]
[WhiteElo "2584"]
[BlackElo "2707"]
[Annotator "TA"]
[PlyCount "143"]
[EventDate "2023.10.20"]
[EventType "team-tourn"]
[EventCountry "GER"]
[SourceTitle "playchess.com"]
[Source "ChessBase"]
[SourceQuality "1"]
[TimeControl "40/6000+30:3000+30"]

{[%evp 62,143,632,0,700,712,840,365,329,200,202,166,235,215,204,0,251,0,157,168,171,138,186,181,213,205,201,175,197,195,197,174,182,179,248,235,247,178,215,0,237,172,187,178,180,172,187,175,210,212,265,266,337,344,334,322,339,350,352,347,431,445,499,488,787,785,700,586,525,620,704,697,668,662,941,895,1527,1504,1379,1331,1721,833,29980,29978]} 1. d4 {[%emt 0:00:03]} Nf6 {[%emt 0:00:11]} 2. c4 {[%emt 0:00:07]} g6 {[%emt 0:00:16]} 3. Nf3 {[%emt 0:02:14]} Bg7 {[%emt 0:00:11]} 4. g3 {[%emt 0:00:14]} c5 {[%emt 0:00:12]} 5. Bg2 {[%emt 0:05:48]} cxd4 {[%emt 0:02:54]} 6. Nxd4 {[%emt 0:02:55] E60: King's Indian: Unusual lines and Fianchetto Variation without Nc3.} h5 {[%emt 0:00:44]} 7. Nc3 {[%emt 0:19:06]} Nc6 {[%emt 0:08:53]} 8. b3 $146 {[%emt 0:19:38]} ({Predecessor:} 8. Nf3 d6 9. O-O Bd7 10. Bg5 Rc8 11. Rc1 Qa5 12. Qd2 Bf5 13. b3 Ne4 14. Nxe4 Bxe4 15. Qe3 Bxf3 16. Bxf3 {½-½ Goryachkina,A (2576)-Sarana,A (2668) EU-ch 23rd Vrnjacka Banja 2023 (3)}) 8... h4 {[%emt 0:36:39]} 9. Nxc6 {[%emt 0:08:23]} bxc6 {[%emt 0:09:47]} 10. Bb2 {[%emt 0:00:22]} Qa5 {[%emt 0:08:50]} 11. Qd2 {[%emt 0:02:40]} Qf5 {[%emt 0:08:13]} 12. Qd3 {[%emt 0:14:29]} Qxd3 {[%emt 0:05:35]} 13. exd3 {[%emt 0:01:05]} h3 {[%emt 0:06:07]} 14. Bf3 {[%emt 0:00:25]} Nh7 {[%emt 0:00:05]} 15. Rf1 {[%emt 0:10:44]} Bb7 {[%emt 0:08:02]} 16. O-O-O {[%emt 0:00:27]} O-O-O {[%emt 0:01:12]} 17. Na4 {[%emt 0:04:07]} Bxb2+ {[%emt 0:00:41]} 18. Kxb2 {[%emt 0:00:01]} e5 {[%emt 0:02:23]} 19. Bh1 {[%emt 0:04:16]} d6 {[%emt 0:02:23]} 20. d4 {[%emt 0:00:25]} Kc7 {[%emt 0:02:17]} 21. Rfe1 {[%emt 0:04:26]} Bc8 {[%emt 0:02:35]} 22. c5 {[%emt 0:01:46]} exd4 {[%emt 0:02:04]} 23. Re7+ {[%emt 0:00:14]} Kb8 {[%emt 0:00:13]} 24. Bxc6 {[%emt 0:01:08]} Ng5 {[%emt 0:00:11]} 25. Rxd4 {[%emt 0:03:52]} dxc5 {[%emt 0:00:04]} 26. Rc4 {[%emt 0:00:52]} Rd2+ {[%emt 0:01:59]} 27. Ka3 {[%emt 0:00:15]} Rxf2 {[%emt 0:00:26]} 28. Nxc5 {[%emt 0:00:40]} a5 {[%emt 0:00:08]} 29. Ra4 {[%emt 0:01:00]} Rf6 {[%emt 0:00:20]} 30. Bh1 {[%emt 0:01:16]} Rf1 {[%emt 0:00:06]} 31. Bc6 {[%emt 0:00:24]} Rf6 {[%emt 0:00:22]} 32. Bh1 {[%emt 0:00:05]} Rf1 {[%emt 0:00:03]} 33. Bb7 {[%emt 0:00:34]} Ne6 {[%emt 0:00:48]} 34. Rxa5 {[%emt 0:00:14]} (34. Na6+ $142 Ka7 35. Bxc8+ Kb6 36. Bxe6) 34... Nc7 $18 {[%emt 0:00:05]} 35. Bxc8 {[%emt 0:02:01]} Rxc8 {[%emt 0:00:15]} 36. Ra4 {[%emt 0:00:34]} Rf5 {[%emt 0:01:09]} (36... Nb5+ $142 37. Kb4 Nc7) 37. Rb4+ {[%emt 0:00:20]} Ka8 {[%emt 0:00:02]} 38. Ra4+ {[%emt 0:00:31]} Kb8 {[%emt 0:00:01]} 39. Ra5 $2 {[%emt 0:01:26]} (39. Rc4 $18) 39... Rd8 $2 {[%emt 0:00:53]} ({Better is} 39... Rf1 $11) 40. Rd7 $16 {[%emt 0:00:37]} Re8 {[%emt 0:02:02]} 41. Rd4 {[%emt 0:10:28]} Kc8 {[%emt 0:05:24]} (41... Ne6 $16 42. Rb4+ Kc7 43. Ra7+ Kc6) 42. Rh4 $18 {[%emt 0:11:54]} Kd8 {[%emt 0:01:38]} 43. Rxh3 {[%emt 0:04:46]} Ree5 {[%emt 0:08:49] [#]} 44. Nb7+ $1 {[%emt 0:03:20]} Kd7 {[%emt 0:01:13]} 45. Rxe5 {[%emt 0:00:32]} Rxe5 {[%emt 0:00:05]} 46. Ka4 {[%emt 0:00:38]} Nd5 {[%emt 0:02:37]} 47. Rh7 {[%emt 0:03:11]} Rf5 {[%emt 0:04:14]} (47... Nc3+ {was called for.} 48. Kb4 Nxa2+ 49. Ka3 Nc3 50. Rxf7+ Kc6 51. Nd8+ Kd5) 48. Nc5+ $18 {[%emt 0:01:42]} Kd6 {[%emt 0:01:17]} 49. Ne4+ {[%emt 0:01:42]} Ke5 {[%emt 0:01:10]} 50. Nc5 {[%emt 0:02:10]} Kd6 $1 {[%emt 0:01:40]} 51. Nd3 {[%emt 0:02:13]} Nc3+ {[%emt 0:01:10]} 52. Ka3 {[%emt 0:00:07]} Rf3 {[%emt 0:00:07]} 53. Rh8 $1 {[%emt 0:00:57]} Kc7 {[%emt 0:00:55]} 54. Ne5 {[%emt 0:03:15]} Rf2 {[%emt 0:05:22]} 55. b4 {[%emt 0:00:06]} Kd6 {[%emt 0:01:40]} 56. Nd3 {[%emt 0:01:22]} Rd2 {[%emt 0:00:50]} 57. Nb2 {[%emt 0:02:47]} Rf2 {[%emt 0:02:29]} 58. Kb3 {[%emt 0:01:00]} Ne4 {[%emt 0:00:48]} 59. Nc4+ {[%emt 0:00:48]} Kc6 {[%emt 0:00:11]} 60. a3 {[%emt 0:02:10]} g5 {[%emt 0:00:27]} 61. Re8 {[%emt 0:00:46]} f5 {[%emt 0:00:34]} 62. Re5 {[%emt 0:00:55]} g4 {[%emt 0:01:18]} (62... Kc7 $142 63. b5 g4 64. b6+ Kc8) 63. b5+ $18 {[%emt 0:00:03]} Kd7 {[%emt 0:00:02]} 64. Kb4 {[%emt 0:01:16]} Rxh2 {[%emt 0:01:09]} 65. Rxf5 {[%emt 0:00:09]} Rh1 {[%emt 0:00:29]} 66. Rf4 {[%emt 0:00:27]} Rb1+ {[%emt 0:00:22]} 67. Ka5 {[%emt 0:00:09]} Nxg3 {[%emt 0:00:04]} 68. Rxg4 {[%emt 0:00:09]} Nf5 {[%emt 0:00:04]} 69. a4 {[%emt 0:00:13]} Ne7 {[%emt 0:00:09]} 70. Ka6 {[%emt 0:00:17]} Kc7 {[%emt 0:00:55]} 71. Nb6 {[%emt 0:00:19]} (71. Rg7 $142 Kd8 72. b6) 71... Kb8 {[%emt 0:01:34]} 72. Rd4 {[%emt 0:00:12]} 1-0

[Event "German Bundesliga 2023-24"]
[Site "Germany"]
[Date "2024.02.23"]
[Round "9.30"]
[White "Anton Guijarro, David"]
[Black "Kozak, Adam"]
[Result "1/2-1/2"]
[ECO "E11"]
[WhiteElo "2653"]
[BlackElo "2600"]
[Annotator "TA"]
[PlyCount "51"]
[EventDate "2023.10.20"]
[EventType "team-tourn"]
[EventCountry "GER"]
[SourceTitle "playchess.com"]
[Source "ChessBase"]
[SourceQuality "1"]
[TimeControl "40/6000+30:3000+30"]

{[%evp 9,51,13,21,16,17,2,21,10,10,8,25,11,8,16,24,-2,0,-9,0,-7,0,0,-22,-14,-18,-13,0,0,0,-13,-17,-20,-9,-16,0,-13,-14,-13,0,0,0,0,0,0]} 1. d4 {[%emt 0:00:07]} Nf6 {[%emt 0:00:30]} 2. Nf3 {[%emt 0:00:36]} e6 {[%emt 0:01:00]} 3. c4 {[%emt 0:01:21]} Bb4+ {[%emt 0:00:54]} 4. Bd2 {[%emt 0:02:19]} Bxd2+ {[%emt 0:00:38]} 5. Qxd2 {[%emt 0:01:45]} d5 {[%emt 0:00:29]} 6. cxd5 {[%emt 0:12:10]} exd5 {[%emt 0:01:24]} 7. Qf4 {[%emt 0:00:15]} O-O {[%emt 0:01:38][%cal Oc7c5]} 8. Nc3 {[%emt 0:00:13]} c6 {[%emt 0:04:55]} 9. e3 {[%emt 0:02:40]} Re8 {[%emt 0:09:31]} 10. h3 {[%emt 0:08:17]} Nbd7 {[%emt 0:15:47][%cal Bb8d7,Bd7f8,Bf8g6][%mdl 32]} 11. Bd3 {[%emt 0:02:16]} Nf8 {[%emt 0:04:10]} 12. O-O-O {[%emt 0:07:52]} Ng6 {[%emt 0:09:37] The position is equal.} 13. Qg3 {[%emt 0:04:25]} Ne7 {[%emt 0:04:49]} 14. Ne5 {[%emt 0:06:31]} Bf5 {[%emt 0:05:10]} 15. Ng4 {[%emt 0:02:09]} Nxg4 {[%emt 0:01:03]} 16. hxg4 {[%emt 0:00:09]} Bxd3 {[%emt 0:00:04]} 17. Rxd3 {[%emt 0:00:06]} Ng6 {[%emt 0:00:17]} 18. Rh5 {[%emt 0:10:44]} f6 {[%emt 0:02:20]} 19. Rd1 {[%emt 0:03:58]} h6 {[%emt 0:13:42]} 20. Qf3 {[%emt 0:01:46]} Nh8 {[%emt 0:05:36]} 21. Ne2 {[%emt 0:07:25][%cal Bc3e2,Be2g3,Bg3f5][%mdl 32]} Nf7 {[%emt 0:00:45]} 22. Qf5 {[%emt 0:00:51]} Qe7 {[%emt 0:06:46]} 23. Ng3 {[%emt 0:03:58]} Qe6 {[%emt 0:01:55]} 24. Rh4 {[%emt 0:06:09]} (24. Qg6 $5 Nh8 $8 25. Qf5 $11) 24... Qxf5 {[%emt 0:02:49]} 25. Nxf5 {[%emt 0:06:37]} Kf8 {[%emt 0:02:27]} 26. Rhh1 {[%emt 0:06:47] A rather calm draw.   Weighted Error Value: White=0.06 (flawless) /Black=0.05 (flawless) .  Inaccurate:     	White=1     	---        OK:         	White=7     	Black=8} 1/2-1/2

[Event "German Bundesliga 2023-24"]
[Site "Germany"]
[Date "2024.02.23"]
[Round "9.31"]
[White "Heimann, Andreas"]
[Black "Kryvoruchko, Yuriy"]
[Result "1/2-1/2"]
[ECO "C79"]
[WhiteElo "2552"]
[BlackElo "2656"]
[Annotator "TA"]
[PlyCount "43"]
[EventDate "2023.10.20"]
[EventType "team-tourn"]
[EventCountry "GER"]
[SourceTitle "playchess.com"]
[Source "ChessBase"]
[SourceQuality "1"]
[TimeControl "40/6000+30:3000+30"]

{[%evp 15,43,33,34,27,31,29,42,-27,22,32,52,55,44,26,46,28,39,33,37,29,34,18,14,12,22,12,6,18,18,1]} 1. e4 {[%emt 0:00:03]} e5 {[%emt 0:00:08]} 2. Nf3 {[%emt 0:00:03]} Nc6 {[%emt 0:00:04]} 3. Bb5 {[%emt 0:00:04]} a6 {[%emt 0:00:12]} 4. Ba4 {[%emt 0:00:04]} Nf6 {[%emt 0:00:07]} 5. O-O {[%emt 0:00:33]} d6 {[%emt 0:00:16]} 6. Bxc6+ {[%emt 0:02:36]} bxc6 {[%emt 0:00:10]} 7. d4 {[%emt 0:00:05]} exd4 {[%emt 0:00:15]} 8. Nxd4 {[%emt 0:00:04]} c5 {[%emt 0:00:25]} 9. Nc6 {[%emt 0:03:10]} Qd7 {[%emt 0:00:05]} 10. Na5 {[%emt 0:00:04]} Qa4 {[%emt 0:00:38]} 11. Nb3 {[%emt 0:01:53]} (11. Bd2 $14) 11... Be7 {[%emt 0:13:53]} (11... Nxe4 {feels stronger.} 12. Qf3 d5) 12. Nc3 $11 {[%emt 0:01:03]} Qd7 {[%emt 0:12:01]} 13. Na5 {[%emt 0:11:31]} O-O {[%emt 0:04:02]} 14. b3 {[%emt 0:01:09]} Re8 {[%emt 0:07:12]} 15. Qf3 {[%emt 0:06:36][%cal Oe4e5] [#] Threatens to win with e5!} Qg4 {[%emt 0:09:15]} 16. Qxg4 {[%emt 0:02:34]} Nxg4 {[%emt 0:09:39]} 17. Nd5 {[%emt 0:04:57]} Bd8 {[%emt 0:00:43]} 18. Nc6 {[%emt 0:00:05] With the idea Nxd8.} Bb7 {[%emt 0:01:48] The position is equal.} 19. Nxd8 {[%emt 0:00:14]} Raxd8 {[%emt 0:00:05]} 20. f3 {[%emt 0:01:06]} Bxd5 {[%emt 0:01:03]} 21. exd5 {[%emt 0:00:10]} Ne3 {[%emt 0:04:44]} 22. Bxe3 {[%emt 0:00:10] Weighted Error Value: White=0.13 (very precise) /Black=0.10 (very precise) .  Mistake:       	White=1     	Black=1      OK:         	White=6     	Black=6      Best:        	White=1     	Black=1} 1/2-1/2

[Event "German Bundesliga 2023-24"]
[Site "Germany"]
[Date "2024.02.23"]
[Round "9.32"]
[White "Korobov, Anton"]
[Black "Kozul, Zdenko"]
[Result "1-0"]
[ECO "B58"]
[WhiteElo "2658"]
[BlackElo "2531"]
[Annotator "TA"]
[PlyCount "149"]
[EventDate "2023.10.20"]
[EventType "team-tourn"]
[EventCountry "GER"]
[SourceTitle "playchess.com"]
[Source "ChessBase"]
[SourceQuality "1"]
[TimeControl "40/6000+30:3000+30"]

{[%evp 78,149,113,113,126,118,118,113,126,104,207,212,202,188,240,248,272,298,351,346,384,377,401,389,751,375,390,376,371,294,296,289,289,283,289,285,524,539,531,517,535,543,538,523,528,517,1077,1020,830,4528,6660,6532,7931,3652,8402,7316,6640,6038,5197,1852,7619,5527,29954,29960,29958,29958,29948,11621,9293,8398,6083,4802,5510,1690]} 1. e4 {[%emt 0:00:04]} c5 {[%emt 0:00:09]} 2. Nf3 {[%emt 0:00:08]} d6 {[%emt 0:00:17]} 3. d4 {[%emt 0:00:10]} cxd4 {[%emt 0:00:07]} 4. Nxd4 {[%emt 0:00:05]} Nf6 {[%emt 0:00:07]} 5. Nc3 {[%emt 0:00:08]} Nc6 {[%emt 0:01:24]} 6. Be2 {[%emt 0:00:10]} e5 {[%emt 0:00:45]} 7. Nf3 {[%emt 0:00:11]} h6 {[%emt 0:00:10]} 8. O-O {[%emt 0:00:16]} Be7 {[%emt 0:00:09]} 9. Re1 {[%emt 0:00:36]} O-O {[%emt 0:00:12]} 10. h3 {[%emt 0:00:07]} Be6 {[%emt 0:04:51]} 11. Bf1 {[%emt 0:01:05]} Nb8 {[%emt 0:00:06]} 12. b3 {[%emt 0:00:54]} Nbd7 {[%emt 0:15:15]} 13. Bb2 {[%emt 0:03:32]} a6 {[%emt 0:07:39]} 14. a4 {[%emt 0:00:25]} Re8 {[%emt 0:00:35]} 15. Nd2 {[%emt 0:01:30]} Rc8 {[%emt 0:15:28]} 16. Nc4 {[%emt 0:02:14]} Rc6 {[%emt 0:04:08]} 17. a5 {[%emt 0:03:05]} Bxc4 {[%emt 0:03:29]} 18. Bxc4 {[%emt 0:01:52]} Qc7 {[%emt 0:00:56]} 19. Re3 {[%emt 0:10:07]} Rc5 {[%emt 0:05:04]} 20. Bd5 {[%emt 0:04:27]} Rxa5 {[%emt 0:04:38]} 21. Rxa5 {[%emt 0:01:30]} Qxa5 {[%emt 0:00:06]} 22. Bxb7 {[%emt 0:00:05]} Rb8 {[%emt 0:09:24]} 23. Bc6 {[%emt 0:08:35]} Nb6 {[%emt 0:00:08]} 24. Na4 {[%emt 0:02:17]} Nxa4 {[%emt 0:00:51]} 25. Bxa4 {[%emt 0:03:31]} Qb6 {[%emt 0:00:23]} 26. Ba3 {[%emt 0:09:44]} a5 {[%emt 0:06:27]} 27. Qe2 {[%emt 0:02:52]} Qb7 {[%emt 0:02:02]} 28. Qe1 {[%emt 0:04:11]} Qa8 {[%emt 0:01:07]} 29. Kh2 {[%emt 0:03:17]} h5 {[%emt 0:02:25]} 30. f3 {[%emt 0:06:43]} Qa7 {[%emt 0:02:20]} 31. Rd3 {[%emt 0:05:22]} Rc8 {[%emt 0:06:54]} 32. c4 {[%emt 0:05:34]} Qc7 {[%emt 0:01:02]} 33. Qd2 {[%emt 0:00:34]} Rd8 {[%emt 0:00:29]} 34. h4 {[%emt 0:00:21]} g6 {[%emt 0:02:36]} 35. g3 {[%emt 0:01:19]} Kg7 {[%emt 0:00:07]} 36. Kg2 {[%emt 0:00:43]} Kg8 {[%emt 0:04:20]} 37. Bb2 {[%emt 0:01:57]} Ra8 {[%emt 0:00:50]} 38. Bc3 {[%emt 0:00:52]} Qc5 {[%emt 0:02:09]} 39. Qf2 {[%emt 0:02:22]} Qc7 {[%emt 0:00:28]} 40. Bb5 {[%emt 0:01:08]} Kh7 {[%emt 0:05:26]} 41. Qa2 {[%emt 0:54:50]} Ra7 {[%emt 0:15:34]} 42. Rd1 {[%emt 0:00:00]} Kg8 {[%emt 0:01:25]} 43. Be1 {[%emt 0:00:00]} Qb8 {[%emt 0:04:05] [#]} (43... Nd7 $16) 44. Bf2 $1 $18 {[%emt 0:00:00]} (44. Bxa5 $2 d5 45. Qa4 (45. exd5 $2 Bb4 $19) 45... dxe4 $17) 44... Ra8 {[%emt 0:00:05]} 45. Qa4 {[%emt 0:00:00]} Qc7 {[%emt 0:00:17]} (45... Qf8 $142 46. Ra1 Qc8) 46. b4 $18 {[%emt 0:00:00]} Bd8 {[%emt 0:01:14]} 47. Bc6 {[%emt 0:00:00]} Rc8 {[%emt 0:04:00]} 48. b5 {[%emt 0:00:00]} Kf8 {[%emt 0:00:52]} 49. Qa3 {[%emt 0:00:00]} Be7 {[%emt 0:04:42]} 50. Qe3 {[%emt 0:00:00]} Nd7 $2 {[%emt 0:00:34] [#]} (50... Kg7 51. Qb6 Bd8) 51. c5 {[%emt 0:00:00]} (51. Qh6+ $142 $1 {[%mdl 512]} Kg8 52. Bd5) 51... Nf6 $18 {[%emt 0:04:08]} 52. cxd6 {[%emt 0:00:00]} Bxd6 {[%emt 0:01:30]} 53. Qb6 {[%emt 0:00:00]} Qxb6 {[%emt 0:02:59]} 54. Bxb6 {[%emt 0:00:00]} Bc7 {[%emt 0:01:08]} 55. Bxc7 {[%emt 0:00:00]} (55. Bc5+ $6 Kg7 56. Kf1 Bd8) 55... Rxc7 {[%emt 0:00:05]} 56. b6 {[%emt 0:00:00]} (56. Ra1 Nd7 57. Rxa5 Ke7 $18) 56... Rc8 $2 {[%emt 0:00:54]} (56... Rxc6 57. b7 Rc2+ 58. Kg1 Rb2 59. Rd8+ Ne8 (59... Kg7 $2 60. b8=Q $18)) 57. b7 $18 {[%emt 0:00:00]} Rb8 {[%emt 0:00:31]} 58. Ra1 {[%emt 0:00:00]} Ke7 {[%emt 0:00:00]} 59. Rxa5 {[%emt 0:00:00]} Kd6 {[%emt 0:01:04]} 60. Ra8 {[%emt 0:00:00]} Kc7 {[%emt 0:00:06]} 61. Kf2 {[%emt 0:00:00]} Ng8 {[%emt 0:03:33]} (61... Nh7 $142 62. Bd5 Nf8) 62. Bd5 $18 {[%emt 0:00:00]} Ne7 {[%emt 0:00:16]} 63. Rxb8 {[%emt 0:00:00]} Kxb8 {[%emt 0:00:07]} 64. Bxf7 {[%emt 0:00:00]} Kxb7 {[%emt 0:00:08]} 65. g4 {[%emt 0:00:00]} (65. Ke3 $142 Kc7 66. f4) 65... Kc7 {[%emt 0:01:40]} 66. g5 {[%emt 0:01:05]} Kc6 {[%emt 0:02:23]} 67. Ke3 {[%emt 0:00:55]} Kc5 {[%emt 0:00:08]} 68. Kd3 {[%emt 0:00:10]} Kb4 {[%emt 0:00:40]} 69. Kd2 {[%emt 0:00:05]} Kc5 {[%emt 0:01:03]} 70. Kc3 {[%emt 0:00:17]} Kb5 {[%emt 0:00:20]} 71. Be6 {[%emt 0:00:43]} Kc5 {[%emt 0:00:19]} 72. Bd7 {[%emt 0:00:10]} Kd6 {[%emt 0:03:22]} 73. Ba4 {[%emt 0:00:06]} Kc7 {[%emt 0:02:26]} 74. Kc4 {[%emt 0:00:36]} Nc6 {[%emt 0:06:14]} 75. Kd5 {[%emt 0:00:19]} 1-0